bitfinex/quotes_SOLUSD_20240716
["timestamp","ask_amount","ask_price","bid_price","bid_amount"]
[1721132957978,16.3335,157.9,157.84,6.3352]
[1721132958185,45.0,157.89,157.82,15.8404]
[1721132958367,10.0,157.9,157.84,15.8381]
[1721132958557,10.0,157.9,157.8,46.8267]
[1721132958558,45.0,157.89,157.81,15.8413]
[1721132959079,51.3336,157.89,157.84,6.3354]
[1721132959877,6.3332,157.9,157.85,7.60176407]
[1721132960058,6.3336,157.89,157.85,1.26696407]
[1721132960452,6.1054,157.91,157.86,1.26683137]
[1721132960663,10.0,157.89,157.8,30.9847]
[1721132960877,6.3344,157.87,157.83,6.3359]
[1721132961075,6.334,157.88,157.84,1.26690999]
[1721132961288,6.3344,157.87,157.82,15.8402]
[1721132961467,45.0,157.9,157.83,1.26695585]
[1721132961658,45.0,157.9,157.82,15.8402]
[1721132961860,6.3338,157.89,157.84,6.3355]
[1721132962060,6.3338,157.89,157.85,7.60184377]
[1721132962259,6.3346,157.87,157.82,15.8402]
[1721132962560,45.0,157.9,157.82,15.8402]
[1721132962561,6.3339,157.88,157.83,6.3357]
[1721132962762,6.3339,157.88,157.84,6.3355]
[1721132962970,6.3344,157.87,157.83,6.3355]
[1721132963358,6.334,157.88,157.84,6.3354]
[1721132963658,6.3336,157.89,157.85,6.335]
[1721132963853,6.3332,157.9,157.85,6.335]
[1721132964070,16.1054,157.91,157.84,15.8383]
[1721132964256,16.3346,157.87,157.82,6.3361]
[1721132964675,6.3349,157.86,157.81,22.1781]
[1721132964878,6.3345,157.87,157.82,1.26710149]
[1721132965061,10.0,157.89,157.81,15.8415]
[1721132965397,16.3346,157.87,157.81,22.1778]
[1721132965556,16.3346,157.87,157.82,6.336]
[1721132965760,10.0,157.89,157.81,15.8415]
[1721132965958,6.334,157.88,157.84,6.3354]
[1721132966159,6.334,157.88,157.84,7.60235757]
[1721132966365,16.1054,157.91,157.84,7.60235757]
[1721132966366,6.3337,157.89,157.85,15.8373]
[1721132966858,6.3328,157.91,157.85,15.8373]
[1721132967154,6.3336,157.89,157.85,22.1723]
[1721132967482,15.761,157.92,157.85,22.1723]
[1721132967483,6.3332,157.9,157.85,22.1723]
[1721132967680,10.0,157.93,157.84,15.3683]
[1721132967906,6.3317,157.94,157.85,6.6298]
[1721132968190,25.1039,157.96,157.89,22.1664]
[1721132968361,15.1039,157.96,157.89,15.8333]
[1721132968561,10.0,157.98,157.89,15.8333]
[1721132968757,6.3307,157.96,157.91,6.3324]
[1721132968979,6.3307,157.96,157.92,6.3322]
[1721132969188,6.3307,157.96,157.93,1.26622075]
[1721132969392,6.3311,157.95,157.91,15.8313]
[1721132969600,6.3308,157.96,157.92,1.26627528]
[1721132969772,6.3312,157.95,157.92,1.26627528]
[1721132969974,6.3315,157.94,157.9,6.333]
[1721132970170,25.8251,157.98,157.88,15.8345]
[1721132970392,25.8251,157.98,157.89,1.26642681]
[1721132970681,6.3318,157.94,157.89,6.3332]
[1721132970997,6.332,157.93,157.89,7.59958154]
[1721132971204,16.2165,157.99,157.91,6.3323]
[1721132971497,6.3306,157.97,157.93,6.3318]
[1721132971683,6.3306,157.97,157.92,6.332]
[1721132971995,10.0,158.0,157.92,32.2224]
[1721132972200,6.3299,157.98,157.93,6.3318]
[1721132972399,10.0,158.02,157.95,6.3308]
[1721132972699,10.0,158.02,157.94,15.8281]
[1721132973271,6.329,158.01,157.96,15.8262]
[1721132973476,6.329,158.01,157.97,1.26583924]
[1721132973692,6.329,158.01,157.97,1.26584024]
[1721132974282,6.3291,158.0,157.96,22.1568]
[1721132974503,6.3295,157.99,157.96,15.8262]
[1721132974702,6.329,158.01,157.96,23.42272145]
[1721132974878,6.3292,158.0,157.96,22.1568]
[1721132975197,10.0,158.04,157.97,1.26589652]
[1721132975398,10.0,158.06,158.01,6.3286]
[1721132975399,6.327,158.06,158.01,6.3286]
[1721132975604,6.327,158.06,158.02,7.59365988]
[1721132975605,6.3267,158.06,158.02,7.59365988]
[1721132975780,6.3267,158.06,158.01,22.1495]
[1721132975983,6.3272,158.05,158.01,22.1495]
[1721132976182,6.3272,158.05,158.01,15.8209]
[1721132976488,6.3267,158.06,158.01,22.1494]
[1721132976891,6.3271,158.05,158.01,15.8209]
[1721132977095,10.0,158.08,158.01,7.59400536]
[1721132977291,6.3263,158.07,158.02,6.3281]
[1721132977592,6.3275,158.05,158.0,22.1511]
[1721132977900,6.3266,158.07,158.02,6.328]
[1721132978109,6.3275,158.04,158.0,15.8222]
[1721132978294,6.3275,158.04,158.0,22.151]
[1721132978604,6.3263,158.08,158.02,15.8202]
[1721132978809,6.3264,158.07,158.03,6.3278]
[1721132979017,6.3264,158.07,158.02,22.1483]
[1721132979186,25.813,158.1,158.02,22.1483]
[1721132979187,10.0,158.1,158.02,15.8202]
[1721132979384,6.3257,158.09,158.02,15.8202]
[1721132979583,6.3254,158.1,158.05,6.327]
[1721132980437,6.3254,158.1,158.06,1.26518172]
[1721132980781,6.3252,158.1,158.05,22.1447]
[1721132980978,10.0,158.14,158.07,6.3262]
[1721132981195,10.0,158.14,158.08,6.3256]
[1721132981390,6.324,158.13,158.08,6.3256]
[1721132981581,6.324,158.13,158.09,6.3255]
[1721132981783,6.3243,158.12,158.08,6.3258]
[1721132982016,6.3243,158.12,158.08,7.59070396]
[1721132982316,0.0398703,158.15,158.09,1.26488436]
[1721132982317,6.3629703,158.15,158.09,1.26488436]
[1721132982511,6.3235,158.14,158.09,6.3252]
[1721132982802,0.0398703,158.15,158.1,17.07668647]
[1721132983016,0.0398703,158.15,158.12,15.81]
[1721132983190,0.0398703,158.15,158.13,1.26445763]
[1721132983386,0.0398703,158.15,158.13,6.3238]
[1721132983592,0.0398703,158.15,158.14,7.5880201]
[1721132983813,0.0398703,158.15,158.12,15.81]
[1721132984024,0.0398703,158.15,158.08,1.26482372]
[1721132984265,0.0398703,158.15,158.06,22.2653]
[1721132984541,10.0,158.14,158.07,22.1416]
[1721132984844,6.3243,158.12,158.07,15.8157]
[1721132985028,6.3246,158.12,158.07,22.1419]
[1721132985545,0.0398703,158.15,158.07,15.8157]
[1721132985750,6.3630703,158.15,158.1,6.325]
[1721132985913,6.3630703,158.15,158.11,6.3246]
[1721132986234,0.0398703,158.15,158.1,6.325]
[1721132986412,0.0398703,158.15,158.12,6.3242]
[1721132986614,6.3632703,158.15,158.09,15.8137]
[1721132986828,0.0398703,158.15,158.1,6.3248]
[1721132987021,0.0398703,158.15,158.09,6.3252]
[1721132987235,0.0398703,158.15,158.06,22.2653]
[1721132987539,0.0398703,158.15,158.1,15.8121]
[1721132987835,0.0398703,158.15,158.07,15.8155]
[1721132988213,6.324,158.13,158.07,15.8155]
[1721132988429,10.0398703,158.15,158.07,15.8155]
[1721132988633,0.0398703,158.15,158.1,15.812]
[1721132988819,0.0398703,158.15,158.12,15.756]
[1721132989018,0.0398703,158.15,158.14,6.3235]
[1721132989322,0.0398703,158.15,158.12,15.756]
[1721132989323,0.0398703,158.15,158.12,37.89]
[1721132989514,0.0398703,158.15,158.12,31.5659]
[1721132989720,0.0398703,158.15,158.13,6.3239]
[1721132989922,0.0398703,158.15,158.13,6.3237]
[1721132990516,0.0398703,158.15,158.12,22.1341]
[1721132990732,0.0398703,158.15,158.12,15.8099]
[1721132991316,0.0398703,158.15,158.12,22.134]
[1721132991631,0.0398703,158.15,158.12,15.8099]
[1721132992327,0.0398703,158.15,158.12,22.1341]
[1721132992913,0.0398703,158.15,158.12,15.8099]
[1721132993118,0.0398703,158.15,158.12,22.1341]
[1721132993345,0.0398703,158.15,158.14,6.3235]
[1721132993540,0.0398703,158.15,158.13,6.3237]
[1721132993933,0.0398703,158.15,158.14,6.3235]
[1721132994136,0.0398703,158.15,158.13,6.3238]
[1721132994444,0.0398703,158.15,158.14,6.3235]
[1721132996935,0.0398703,158.15,158.14,6.4935]
[1721132997330,0.0398703,158.15,158.14,22.4483]
[1721132998323,0.0398703,158.15,158.14,22.6183]
[1721132999056,0.0398703,158.15,158.14,22.4483]
[1721133000337,6.3248,158.11,158.02,15.6647]
[1721133000540,6.3248,158.11,157.88,41.61987824]
[1721133000541,6.3274,158.05,157.89,21.7759]
[1721133000744,6.3298,157.99,157.94,6.62120564]
[1721133000958,6.3293,158.0,157.93,15.8297]
[1721133001165,6.3288,158.01,157.93,15.8297]
[1721133001373,6.3295,157.99,157.93,22.1615]
[1721133001528,10.0,158.0,157.89,15.8329]
[1721133001832,25.2793,158.04,157.9,31.6653]
[1721133001833,6.2593,158.04,157.9,31.6653]
[1721133002044,6.4087,158.09,158.01,15.8217]
[1721133002226,6.4087,158.09,157.98,6.3295]
[1721133002227,6.3273,158.05,157.98,6.3295]
[1721133002452,6.3273,158.05,157.91,6.6242]
[1721133002453,10.0,158.04,157.91,6.6242]
[1721133002762,0.17,158.08,157.86,6.6242]
[1721133002763,6.3298,157.99,157.86,6.6242]
[1721133003057,10.0,158.0,157.92,15.8307]
[1721133003239,10.0,157.98,157.86,6.3343]
[1721133003569,10.0,157.95,157.87,15.8357]
[1721133003751,10.0,157.93,157.86,6.3346]
[1721133003929,45.0,157.94,157.84,6.3351]
[1721133003930,10.0,157.91,157.84,6.3351]
[1721133004132,10.0,157.95,157.81,6.5273]
[1721133004330,10.0,157.97,157.89,15.8334]
[1721133004642,10.0,157.91,157.81,6.5273]
[1721133004957,0.17,157.92,157.81,15.8413]
[1721133005138,14.13421834,157.97,157.78,16.4682]
[1721133005324,10.0,157.97,157.86,15.836]
[1721133005648,10.0,157.97,157.79,31.6864]
[1721133005649,10.0,157.97,157.92,15.8306]
[1721133005953,6.0201,158.07,158.03,6.3275]
[1721133006150,0.0398703,158.15,157.95,6.3103]
[1721133006451,0.0398703,158.15,158.14,6.3235]
[1721133007168,0.0398703,158.15,158.14,51.6635]
[1721133007366,10.0,158.27,158.2,6.321]
[1721133007647,0.8524118,158.38,158.14,45.34]
[1721133007648,6.3193,158.25,158.14,45.34]
[1721133007853,6.3193,158.25,158.11,15.9135]
[1721133007854,10.0,158.28,158.15,20.0]
[1721133008227,10.0,158.31,158.11,15.9135]
[1721133008436,10.0,158.31,158.2,15.802]
[1721133008638,10.0,158.32,158.2,22.1229]
[1721133008835,10.0,158.32,158.21,45.17]
[1721133009036,10.0,158.37,158.3,6.3169]
[1721133009252,10.0,158.37,158.28,15.794]
[1721133009253,0.8524118,158.38,158.21,65.34]
[1721133009454,0.8524118,158.38,158.25,31.595]
[1721133009767,6.3157,158.34,158.26,6.3185]
[1721133009929,0.8524118,158.38,158.17,15.8052]
[1721133009930,10.0,158.27,158.17,15.8052]
[1721133010242,6.3179,158.28,158.2,15.802]
[1721133010472,10.0,158.26,158.16,6.3225]
[1721133010646,10.0,158.26,158.13,15.809]
[1721133010647,10.0,158.24,158.13,15.809]
[1721133010846,0.17,158.23,158.13,15.809]
[1721133011048,0.17,158.23,158.08,15.8146]
[1721133011049,10.0,158.2,158.08,15.8146]
[1721133011226,16.3219,158.18,158.08,22.1402]
[1721133011546,10.0,158.16,158.02,6.3552]
[1721133011747,10.0,158.14,158.07,22.1412]
[1721133011955,0.17,158.15,158.07,15.8151]
[1721133012128,0.17,158.15,158.02,6.3552]
[1721133012129,20.0,158.23,158.04,50.6562]
[1721133012332,0.17,158.22,158.15,15.807]
[1721133012537,20.0,158.22,158.15,15.807]
[1721133012739,10.0,158.27,158.15,15.807]
[1721133012936,10.0,158.24,158.15,22.1298]
[1721133013145,10.0,158.19,158.1,15.812]
[1721133013457,6.3232,158.15,158.07,6.3262]
[1721133013748,10.0,158.16,158.04,15.818]
[1721133013929,10.0,158.13,158.0,15.8346]
[1721133014130,10.0,158.11,158.04,15.8186]
[1721133014339,10.0,158.13,158.05,6.3268]
[1721133014540,16.3248,158.11,158.03,6.3275]
[1721133014859,20.17,158.12,157.98,31.6482]
[1721133015037,20.17,158.12,158.04,6.3272]
[1721133015038,6.3248,158.11,158.04,6.3272]
[1721133015237,20.0,158.1,158.04,6.3272]
[1721133015451,20.0,158.1,158.03,15.8191]
[1721133015452,20.0,158.1,158.05,6.3269]
[1721133015756,10.8519856,158.09,158.03,15.8191]
[1721133015940,20.0,158.1,158.03,17.08445179]
[1721133016151,0.8519856,158.13,158.08,6.3258]
[1721133016456,6.3198,158.24,158.13,15.8089]
[1721133016652,6.3212,158.2,158.13,6.3237]
[1721133016838,6.3212,158.2,158.14,1.26457768]
[1721133016839,0.8519856,158.2,158.14,1.26457768]
[1721133017150,0.8519856,158.2,158.13,1.26443335]
[1721133017352,0.8519856,158.22,158.15,1.26443335]
[1721133017554,6.3195,158.24,158.17,22.127]
[1721133017772,0.8519856,158.23,158.17,15.8051]
[1721133017937,0.8519856,158.23,158.13,15.8097]
[1721133017938,17.1720856,158.23,158.13,15.8097]
[1721133018136,6.3197,158.24,158.16,15.8061]
[1721133018337,0.8519856,158.23,158.16,22.1286]
[1721133018559,0.8519856,158.24,158.16,15.8061]
[1721133018753,0.8519856,158.24,158.17,1.26399957]
[1721133019054,7.1706856,158.26,158.19,15.8032]
[1721133019241,10.0,158.25,158.19,15.8032]
[1721133019439,0.8519856,158.25,158.19,1.26417051]
[1721133019752,10.8519856,158.25,158.16,20.0]
[1721133019949,6.3198,158.24,158.16,20.0]
[1721133020153,0.8519856,158.29,158.21,15.8011]
[1721133020382,0.8519856,158.29,158.22,1.2638237]
[1721133020542,10.0,158.3,158.25,15.7977]
[1721133020857,0.8519856,158.29,158.23,6.3198]
[1721133021041,10.0,158.28,158.22,1.26377466]
[1721133021243,10.0,158.35,158.21,15.8012]
[1721133021244,10.0,158.26,158.21,15.8012]
[1721133021438,6.3201,158.23,158.09,6.5442]
[1721133021669,0.8519856,158.23,158.19,15.8033]
[1721133021852,0.8519856,158.23,158.11,1.2641397]
[1721133021853,6.3208,158.21,158.14,6.3231]
[1721133022059,0.8519856,158.2,158.09,38.1709]
[1721133022235,0.8519856,158.21,158.09,6.5442]
[1721133022447,10.8519856,158.2,158.11,15.8113]
[1721133022662,10.0,158.16,158.04,31.6375]
[1721133022974,10.0,158.13,158.06,1.26487283]
[1721133023137,10.0,158.13,157.96,15.0]
[1721133023138,0.8519856,158.12,158.07,6.3262]
[1721133023338,0.8519856,158.12,158.03,15.8191]
[1721133023339,0.8519856,158.12,158.1,6.3249]
[1721133023538,0.17,158.15,157.98,15.5901]
[1721133023539,10.0,158.13,157.98,15.5901]
[1721133023841,16.3255,158.09,158.01,15.8212]
[1721133024063,0.8519856,158.08,158.04,6.3272]
[1721133024268,0.8519856,158.07,158.01,15.8212]
[1721133024638,0.17,158.06,158.01,15.8212]
[1721133024841,10.0,158.06,158.01,22.1498]
[1721133025047,20.0,158.07,158.03,6.3278]
[1721133025253,20.0,158.07,158.01,15.8212]
[1721133025254,36.326,158.08,158.01,15.8212]
[1721133025562,10.0,158.1,157.92,15.0]
[1721133025871,10.0,158.08,158.03,15.8195]
[1721133026172,10.0,158.06,158.01,6.3286]
[1721133026368,0.8519856,158.06,158.02,6.3283]
[1721133026671,17.1787856,158.06,158.0,6.3289]
[1721133026876,0.8519856,158.06,158.02,15.8205]
[1721133027168,7.1786856,158.06,157.98,15.8239]
[1721133027365,0.8519856,158.06,158.03,6.3278]
[1721133027568,1.0219856,158.08,158.01,22.1497]
[1721133027869,7.3478856,158.08,158.02,6.3282]
[1721133028083,16.3263,158.07,158.01,15.8214]
[1721133028379,0.8519856,158.08,158.02,1.26550027]
[1721133028541,0.8519856,158.12,158.08,6.3259]
[1721133028735,0.8519856,158.13,158.07,15.8155]
[1721133028939,10.0,158.17,158.06,0.17]
[1721133029163,0.8519856,158.16,158.13,15.8096]
[1721133029377,10.0,158.17,158.13,22.1331]
[1721133029558,0.8519856,158.18,158.14,6.3234]
[1721133029878,0.8519856,158.18,158.07,31.6314]
[1721133029879,10.0,158.21,158.17,6.3222]
[1721133030177,17.1733856,158.2,158.14,6.3231]
[1721133030348,6.3231,158.15,158.08,15.8141]
[1721133030548,0.8519856,158.15,158.06,31.6317]
[1721133030757,7.1742856,158.17,158.12,6.3242]
[1721133030965,0.8519856,158.17,158.11,15.8117]
[1721133031266,10.0,158.16,158.11,15.8117]
[1721133031576,0.8519856,158.15,158.11,15.8117]
[1721133031787,0.8519856,158.15,158.07,20.0]
[1721133031788,10.8519856,158.14,158.09,6.3254]
[1721133032073,6.3247,158.11,158.05,6.3267]
[1721133032276,10.0,158.12,158.06,6.3263]
[1721133032277,0.8519856,158.1,158.06,6.3263]
[1721133032566,10.8519856,158.1,158.06,6.3265]
[1721133032746,10.8519856,158.1,158.05,6.3269]
[1721133032949,0.8519856,158.1,158.06,6.3263]
[1721133033146,10.8519856,158.1,158.04,22.146]
[1721133033386,6.4955,158.09,158.04,15.8187]
[1721133033577,0.8519856,158.08,158.04,22.1461]
[1721133033754,20.17,158.11,158.0,15.8219]
[1721133033755,10.0,158.06,158.0,15.8219]
[1721133033952,0.8519856,158.05,158.01,6.3283]
[1721133034146,10.8519856,158.04,158.0,15.8219]
[1721133034447,10.0,158.06,158.02,6.3283]
[1721133034649,17.1789856,158.06,157.97,15.8257]
[1721133034862,6.3275,158.04,158.0,15.8225]
[1721133035080,10.0,158.0,157.96,6.3304]
[1721133035258,0.8519856,157.99,157.97,22.1559]
[1721133035682,0.8519856,158.0,157.97,22.1559]
[1721133035972,0.8519856,158.01,157.97,15.8257]
[1721133036175,11.1919856,158.05,158.0,6.3291]
[1721133036483,16.3279,158.03,157.97,15.8257]
[1721133036649,0.8519856,158.02,157.97,15.8257]
[1721133036866,0.8519856,158.03,157.99,15.8228]
[1721133037194,0.8519856,158.05,157.99,15.8228]
[1721133037488,0.8519856,158.04,158.02,15.8207]
[1721133037699,16.3267,158.06,157.97,32.91510277]
[1721133037900,0.8519856,158.05,157.98,20.0]
[1721133038085,10.8519856,158.07,157.99,1.26540381]
[1721133038277,0.8519856,158.06,157.98,20.0]
[1721133038465,0.8519856,158.06,157.93,31.6585]
[1721133038466,0.8519856,158.06,157.94,21.26559465]
[1721133038672,0.8519856,158.06,157.95,1.26589191]
[1721133038673,10.0,158.03,157.95,1.26589191]
[1721133038881,0.8519856,158.04,158.0,6.329]
[1721133039200,0.8519856,158.04,157.99,15.8229]
[1721133039386,10.8519856,158.04,157.99,15.8229]
[1721133039560,0.8519856,158.1,158.06,6.3267]
[1721133039767,0.8519856,158.1,158.04,15.8178]
[1721133040013,0.8519856,158.13,158.12,6.3243]
[1721133040215,10.0,158.16,158.1,6.3247]
[1721133040368,10.0,158.14,158.09,15.813]
[1721133040571,10.0,158.12,158.09,15.813]
[1721133040778,0.8519856,158.11,158.1,6.3251]
[1721133040982,7.1757856,158.14,158.09,15.813]
[1721133041179,10.0,158.1,158.05,15.8169]
[1721133041381,0.8519856,158.11,158.08,6.3255]
[1721133041594,0.8519856,158.1,158.07,15.8149]
[1721133041796,0.8519856,158.1,158.01,31.6422]
[1721133041797,10.0,158.09,158.04,15.8184]
[1721133041969,0.8519856,158.1,158.06,22.1421]
[1721133042178,0.8519856,158.1,158.06,15.8158]
[1721133042179,10.0,158.08,158.06,15.8158]
[1721133042374,10.0,158.08,158.04,6.3275]
[1721133042375,0.8519856,158.07,158.04,6.3275]
[1721133042678,10.0,158.06,158.03,6.3278]
[1721133042906,10.0,158.06,158.02,15.8198]
[1721133042907,0.8519856,158.05,158.02,15.8198]
[1721133043116,0.8519856,158.05,158.02,22.148]
[1721133043283,0.8519856,158.04,158.02,15.8198]
[1721133043677,10.0,158.02,157.99,6.3294]
[1721133043874,0.8519856,158.01,157.93,31.6585]
[1721133044197,10.8519856,158.03,157.99,6.3294]
[1721133044393,10.0,158.01,157.97,15.8248]
[1721133044704,45.8519856,158.0,157.97,22.155]
[1721133045207,0.8519856,158.0,157.98,6.3298]
[1721133045407,0.8519856,158.0,157.97,15.8248]
[1721133045915,0.8519856,158.0,157.93,31.6585]
[1721133045916,20.0,158.02,157.98,1.26600929]
[1721133046204,20.0,158.04,157.96,15.8264]
[1721133046205,0.8519856,158.01,157.96,15.8264]
[1721133046414,10.0,158.01,157.96,15.8264]
[1721133046599,0.8519856,158.01,157.98,6.3297]
[1721133046778,0.8519856,158.01,157.96,22.1567]
[1721133046974,0.8519856,158.01,157.96,15.8264]
[1721133047276,0.8519856,158.01,157.98,6.3298]
[1721133047477,10.8519856,158.01,157.96,15.8264]
[1721133047678,45.17,158.0,157.96,15.8264]
[1721133047900,0.8519856,157.99,157.96,22.1569]
[1721133048314,0.8519856,157.99,157.96,6.3306]
[1721133048715,0.8519856,157.99,157.97,6.3302]
[1721133049083,0.8519856,158.0,157.98,6.3299]
[1721133049295,0.8519856,158.01,157.98,6.3299]
[1721133049794,20.0,158.02,157.99,6.3294]
[1721133049994,0.8519856,158.04,157.97,15.8254]
[1721133050192,0.8519856,158.04,157.98,6.3295]
[1721133050381,10.0,158.05,158.01,6.3283]
[1721133050382,0.8519856,158.05,158.01,6.3283]
[1721133050704,10.0,158.08,158.01,15.8211]
[1721133050705,0.8519856,158.07,158.01,15.8211]
[1721133051019,10.0,158.06,157.98,15.8246]
[1721133051215,6.3275,158.04,158.0,6.329]
[1721133051509,0.8519856,158.03,157.98,15.8246]
[1721133051684,0.8519856,158.05,157.98,15.8246]
[1721133051889,10.8519856,158.04,157.98,15.8246]
[1721133052095,20.8519856,158.03,157.98,15.8246]
[1721133052276,10.0,158.02,157.95,15.8276]
[1721133052483,10.0,158.0,157.96,6.3303]
[1721133052779,0.8519856,157.99,157.96,6.3303]
[1721133053027,0.8519856,157.98,157.94,6.3312]
[1721133053182,45.8519856,157.98,157.94,6.3312]
[1721133053383,45.8519856,157.98,157.92,22.1625]
[1721133053714,52.1819856,157.98,157.93,6.3318]
[1721133053914,16.3309,157.96,157.92,15.8306]
[1721133054121,0.8519856,157.95,157.92,15.8306]
[1721133054301,0.8519856,157.95,157.92,22.1629]
[1721133054486,0.8519856,157.95,157.84,31.6769]
[1721133054698,20.8519856,157.95,157.84,31.6769]
[1721133054891,0.17,157.94,157.89,15.8328]
[1721133055116,20.8519856,157.95,157.9,1.26651484]
[1721133055286,20.8519856,157.95,157.9,6.3327]
[1721133055716,27.1830856,157.95,157.89,22.1662]
[1721133056020,6.3317,157.94,157.89,15.8328]
[1721133056192,6.3317,157.94,157.89,22.1661]
[1721133056193,0.8519856,157.93,157.89,22.1661]
[1721133056386,0.8519856,157.93,157.83,32.5309118]
[1721133056387,6.3328,157.91,157.83,32.5309118]
[1721133056690,0.8519856,157.9,157.87,6.3342]
[1721133056900,10.0,157.91,157.85,15.8378]
[1721133057131,7.1851856,157.9,157.85,15.8378]
[1721133057298,0.8519856,157.89,157.85,22.1729]
[1721133057499,10.8519856,157.89,157.85,15.8378]
[1721133057797,0.8519856,157.89,157.84,6.3351]
[1721133057997,10.8519856,157.89,157.84,6.3351]
[1721133058215,10.0,157.87,157.83,0.8524118]
[1721133058522,0.8519856,157.86,157.83,0.8524118]
[1721133058895,17.1867856,157.86,157.83,0.8524118]
[1721133059094,0.8519856,157.85,157.83,0.8524118]
[1721133059512,0.8519856,157.86,157.83,7.1882118]
[1721133059712,10.8519856,157.85,157.83,0.8524118]
[1721133059919,0.8519856,157.84,157.83,0.8524118]
[1721133060139,10.8519856,157.85,157.83,0.8524118]
[1721133060819,10.8519856,157.87,157.83,0.8524118]
[1721133061147,20.0,157.86,157.83,0.8524118]
[1721133061337,6.3355,157.84,157.83,0.8524118]
[1721133061639,62.3570856,157.85,157.83,0.8524118]
[1721133061842,6.3355,157.84,157.83,0.8524118]
[1721133062016,62.1870856,157.85,157.83,0.8524118]
[1721133062216,6.3355,157.84,157.83,0.8524118]
[1721133062424,6.5055,157.84,157.83,0.8524118]
[1721133062624,51.5055,157.84,157.83,0.8524118]
[1721133062843,71.3355,157.84,157.83,0.8524118]
[1721133063064,20.0,157.84,157.83,0.8524118]
[1721133063363,71.5055,157.84,157.83,0.8524118]
[1721133063646,78.26628017,157.84,157.83,0.8524118]
[1721133063956,78.26628017,157.84,157.71,15.8517]
[1721133063957,10.0,157.78,157.71,15.8517]
[1721133064157,0.8519856,157.77,157.71,15.8517]
[1721133064331,10.0,157.74,157.71,15.8517]
[1721133064655,10.0,157.74,157.68,15.8545]
[1721133064656,0.8519856,157.73,157.68,15.8545]
[1721133064869,0.8519856,157.73,157.69,6.3411]
[1721133065019,7.1918856,157.73,157.68,22.1964]
[1721133065221,51.3404,157.72,157.67,0.8524118]
[1721133065522,10.0,157.7,157.68,6.3419]
[1721133065746,0.8519856,157.69,157.67,7.1947118]
[1721133065943,10.0,157.68,157.67,0.8524118]
[1721133066162,16.3419,157.68,157.67,0.8524118]
[1721133066367,10.0,157.7,157.67,0.8524118]
[1721133066651,0.8519856,157.72,157.69,15.8538]
[1721133066895,10.8519856,157.72,157.69,15.8538]
[1721133067162,10.0,157.69,157.67,0.8524118]
[1721133067367,46.0219856,157.68,157.67,0.8524118]
[1721133067534,66.1919856,157.68,157.67,0.8524118]
[1721133067734,72.5338856,157.68,157.67,0.8524118]
[1721133068577,71.6819,157.68,157.67,0.8524118]
[1721133068946,65.34,157.68,157.58,6.3459]
[1721133069158,10.0,157.63,157.58,6.3459]
[1721133069337,10.0,157.59,157.57,15.8651]
[1721133069532,65.17,157.62,157.57,15.8651]
[1721133069533,10.0,157.61,157.57,15.8651]
[1721133069737,45.17,157.62,157.58,6.3459]
[1721133070037,10.0,157.61,157.57,22.2111]
[1721133070253,10.0,157.6,157.57,15.8651]
[1721133070449,10.0,157.58,157.55,6.59142616]
[1721133070667,0.8519856,157.59,157.55,6.59142616]
[1721133070668,45.8519856,157.57,157.55,6.59142616]
[1721133070875,10.8519856,157.57,157.55,6.59142616]
[1721133071073,17.1983856,157.57,157.55,6.59142616]
[1721133071386,10.8519856,157.57,157.55,6.59142616]
[1721133071541,45.0,157.56,157.55,6.59142616]
[1721133071849,10.8519856,157.57,157.55,6.59142616]
[1721133072037,0.8519856,157.56,157.55,6.59142616]
[1721133072669,10.0,157.61,157.57,6.3463]
[1721133072849,6.3991,157.66,157.55,6.59142616]